Cogmind - Beta 15 @@@ ROGUE MODE // 2025.07.01 @ 16:52:45 Player: LameThyst Result: Destroyed by D-53 Grenadier with Mini Grenade Launcher Performance ------------- Evolutions (0) 0 Regions Visited (2) 400 Robots Destroyed (6) 30 Value Destroyed (128) 128 Prototype IDs (1) 20 Alien Tech Used (0) 0 Bonus (0) 0 TOTAL SCORE: 578 Bonus ------- None Cogmind --------- Core Integrity 0/250 Matter 380/1800 Energy 123/125 System Corruption 0% Temperature Cool (0) Movement Walking (190) Ox1 Location -10/Mines Parts ------- > --- POWER (1) -------- Light Ion Engine > --- PROPULSION (2) --- Aluminum Leg > --- UTILITY (2) ------ Small Storage Unit YI-UF0's Bottomless Matter Pit > --- WEAPON (2) ------- Light Assault Rifle > --- INVENTORY (8) ---- Advanced Heat Sink Medium Matter Pod (100) Small Laser Peak State ------------ > --- POWER ------------ Light Ion Engine > --- PROPULSION ------- Aluminum Leg Aluminum Leg > --- UTILITY ---------- Small Storage Unit YI-UF0's Bottomless Matter Pit > --- WEAPON ----------- Light Assault Rifle Light Assault Rifle > --- INVENTORY -------- Aluminum Leg Advanced Heat Sink Medium Matter Pod Small Laser [Rating: 15] Favorites ----------- Power Ion Engine Engine Ion Engine Propulsion Aluminum Leg Leg Aluminum Leg Utility Small Storage Unit Device Heat Sink Storage Small Storage Unit Weapon Light Assault Rifle Energy Gun Particle Gun Ballistic Gun Light Assault Rifle Build | -11 -10 -10 ------- Run | Yrd Mat Min Slots Evolved . | . . . Power . | . . . Propulsion . | . . . Utility . | . . . Weapon . | . . . Parts Attached 16 | 6 2 8 Power 2 | 1 1 . Engine 2 | 1 1 . Core . | . . . Reactor . | . . . Propulsion 6 | 2 . 4 Treads . | . . . Leg 6 | 2 . 4 Wheel . | . . . Hover . | . . . Flight . | . . . Utility 4 | 1 1 2 Device 2 | . 1 1 Storage 2 | 1 . 1 Processor . | . . . Hackware . | . . . Protection . | . . . Artifact . | . . . Weapon 4 | 2 . 2 Energy Gun 2 | . . 2 Energy Cannon . | . . . Ballistic Gun 2 | 2 . . Ballistic Cannon . | . . . Launcher . | . . . Special Weapon . | . . . Impact Weapon . | . . . Slashing Weapon . | . . . Piercing Weapon . | . . . Special Melee Weapon . | . . . Unidentified Prototypes 1 | . . 1 Parts Lost 8 | . . 8 Power 1 | . . 1 Propulsion 4 | . . 4 Utility 1 | . . 1 Weapon 2 | . . 2 Highest Loss Streak 5 | . . 5 To Critical Strikes . | . . . Average Backups 6 | 2 5 6 Power . | . 1 . Propulsion 2 | 1 3 2 Utility 1 | . . 1 Weapon 1 | . 1 1 Tool/Special . | . . . Unused Backups 6 | . 2 4 Power . | . . . Propulsion 4 | . 2 2 Utility 2 | . . 2 Weapon . | . . . Tool/Special . | . . . Average Slot Usage (%) 93 | . 98 91 Engine 11 | . 14 10 Leg 27 | . 28 26 Device 10 | . 12 9 Storage 16 | . 14 17 Energy Gun 7 | . . 9 Ballistic Gun 18 | . 28 15 Peak Build Rating 15 | 6 7 15 Average Rating 8 | 4 6 9 On Entrance 4 | . 6 7 Naked Turns . | . . . Heaviest Build 18 | 10 13 18 Greatest Support 20 | 20 20 20 Greatest Overweight (x) 4 | . . 4 Average Overweight (x) . | . . . Largest Inventory Capacity 8 | 8 8 8 Average Capacity 7 | 6 8 8 Most Carried 8 | 6 7 8 Average Carried 6 | 3 5 6 Final Capacity 8 | 8 8 8 Final Carried 6 | 6 6 3 Class Distribution -------------------- 100% | Mutant Dominant Class ---------------- Mutant | -10/Materials Mutant | -10/Mines Resources | -11 -10 -10 ----------- Run | Yrd Mat Min Matter Collected 598 | 253 . 345 Remotely . | . . . Salvage Created 347 | . . 347 Parts 14 | . . 14 Haulers Intercepted . | . . . Recyclers Shooed . | . . . Parts Field Recycled . | . . . Retrieved Matter . | . . . Parts Self-Destructed . | . . . Prevented . | . . . Kills | -11 -10 -10 ------- Run | Yrd Mat Min Combat Hostiles Destroyed 4 | . . 4 Guns 4 | . . 4 Classes Destroyed 2 | . . 2 Recycler 2 | . . 2 Grunt 3 | . . 3 Best Kill Streak 3 | . . 3 Combat Bots Only 2 | . . 2 Max Kills in Single Turn 1 | . . 1 Gunslinging . | . . . Exploded . | . . . Melee . | . . . Uniques/NPCs Destroyed 1 | . . 1 YI-UF0 (-10/Mines) Combat | -11 -10 -10 -------- Run | Yrd Mat Min Hostile Shots Fired 48 | . . 48 Missed 12 | . . 12 Hits 36 | . . 36 Projectile 36 | . . 36 AOE 24 | . . 24 Damage Taken 1023 | . . 1023 Core 250 | . . 250 Absorbed by Shields . | . . . Core Remaining (%) 100 | 100 . . Volleys Fired 31 | . 2 29 Largest 2 | . 2 2 Hottest 85 | . 40 85 Shots Fired 61 | . 4 57 Gun 61 | . 4 57 Cannon . | . . . Launcher . | . . . Special . | . . . Kinetic 38 | . 4 34 Thermal 23 | . . 23 Explosive . | . . . Electromagnetic . | . . . Robot Hit Streak 7 | . 1 7 Robot Miss Streak 3 | . 2 3 Penetration Max . | . . . Secondary Targets . | . . . Shots Hit Robots 42 | . 1 41 Core Hits 16 | . . 16 Critical Kills . | . . . Critical Parts Destroyed . | . . . Critical Strikes . | . . . Melee Attacks . | . . . Impact . | . . . Slashing . | . . . Piercing . | . . . Sneak Attacks . | . . . Combat Hostiles . | . . . Follow-up Attacks . | . . . Damage Inflicted 447 | . 6 441 Guns 447 | . 6 441 Cannons . | . . . Explosions . | . . . Melee . | . . . Ramming . | . . . Kinetic 203 | . 6 197 Thermal 244 | . . 244 Explosive . | . . . Electromagnetic . | . . . Impact . | . . . Slashing . | . . . Piercing . | . . . Highest Corruption . | . . . Average Corruption . | . . . Corruption Purged . | . . . Corruption Blocked . | . . . Overload Shots . | . . . Overflow Damage . | . . . Projectiles . | . . . Explosions . | . . . Melee . | . . . Knockbacks . | . . . Impact . | . . . Kinetic . | . . . Secondary . | . . . Self-Inflicted Damage . | . . . Shots . | . . . Rammed . | . . . Targets Rammed . | . . . Kicked . | . . . Crushed . | . . . Highest Temperature 90 | . . 90 Average Temperature 29 | . . 29 Received Heat Transfer 108 | . . 108 Siege Activations . | . . . Martial Activations . | . . . Shielding Activations . | . . . Robots Disrupted . | . . . Combat Hostiles . | . . . Robots Corrupted . | . . . Combat Hostiles . | . . . Parts Fried . | . . . Impact Corruptions . | . . . Robots Melted . | . . . Combat Hostiles . | . . . Parts Melted . | . . . Heat Transferred 558 | . . 558 Parts Sabotaged . | . . . Parts Stolen . | . . . Parts Stripped . | . . . Power Chain Reactions . | . . . Alert | -11 -10 -10 ------- Run | Yrd Mat Min Maximum Alert Level . | . . . Low Security (%) 100 | 100 100 100 Level 1 . | . . . Level 2 . | . . . Level 3 . | . . . Level 4 . | . . . Level 5 . | . . . High Security . | . . . Max Security . | . . . Peak Influence 50 | . . 50 Initial . | . . . Average 7 | . . 10 Influence Increases 80 | . . 80 Destroy 0b10 Robot/C 60 | . . 60 Destroy 0b10 Robot/NC 10 | . . 10 Destroy Leader 10 | . . 10 Influence Decreases 80 | . . 80 Time Decay 80 | . . 80 Squads Dispatched 1 | . 1 . Investigation . | . . . Extermination . | . . . Reinforcement 1 | . 1 . Assault . | . . . Garrison . | . . . Intercept . | . . . Searches Triggered . | . . . Construction Impeded . | . . . Haulers Reinforced . | . . . Active Scanning Responses . | . . . Cargo Convoy Interrupts . | . . . Stealth | -11 -10 -10 --------- Run | Yrd Mat Min Distress Signals . | . . . Communications Jammed . | . . . Distress Signals . | . . . Times Spotted 9 | . 1 8 Peak Tracking Total 3 | . 1 3 Tactical Retreats . | . . . Traps | -11 -10 -10 ------- Run | Yrd Mat Min Traps Triggered . | . . . Indirectly . | . . . Trap Hack Attempts . | . . . Triggered . | . . . Disarmed . | . . . Reprogrammed . | . . . Reused . | . . . Traps Extracted . | . . . Installed . | . . . Triggered . | . . . Machines | -11 -10 -10 ---------- Run | Yrd Mat Min Machines Disabled . | . . . Max in Single Turn . | . . . Machines Repaired . | . . . Machines Dismantled . | . . . Machines Sabotaged . | . . . Overloaded Fab Kills . | . . . Hacking | -11 -10 -10 --------- Run | Yrd Mat Min Machines Accessed 2 | . 2 . Terminals 1 | . 1 . Fabricators . | . . . Repair Stations . | . . . Recycling Units 1 | . 1 . Scanalyzers . | . . . Garrison Access . | . . . Total Hacks 4 | . 4 . Successful 1 | . 1 . Failed 3 | . 3 . Catastrophic 1 | . 1 . Database Lockouts . | . . . Manual . | . . . Terminals 2 | . 2 . Fabricators . | . . . Repair Stations . | . . . Recycling Units 2 | . 2 . Scanalyzers . | . . . Garrison Access . | . . . Terminal Hacks . | . . . Fabricator Hacks . | . . . Repair Station Hacks . | . . . Recycling Unit Hacks 1 | . 1 . Retrieve Components 1 | . 1 . Scanalyzer . | . . . Garrison Access Hacks . | . . . Unauthorized Hacks . | . . . Terminals . | . . . Fabricators . | . . . Repair Stations . | . . . Recycling Units . | . . . Scanalyzers . | . . . Garrison Access . | . . . Data Cores Recovered . | . . . Used . | . . . Hacking Detections 2 | . 2 . Full Trace Events . | . . . Feedback Events . | . . . Feedback Blocked . | . . . Robot Schematics Acquired . | . . . Robots Built . | . . . Authchips . | . . . Time . | . . . Total Robot Build Rating . | . . . Part Schematics Acquired . | . . . Parts Built . | . . . Authchips . | . . . Time . | . . . Total Part Build Rating . | . . . Parts Repaired . | . . . Time . | . . . Parts Recycled . | . . . Recycled Matter . | . . . Retrieved Matter . | . . . Retrieved Components 3 | . 3 . Parts Scanalyzed . | . . . Part Schematics Acquired . | . . . Parts Damaged . | . . . Bothacking | -11 -10 -10 ------------ Run | Yrd Mat Min Used RIF Installer . | . . . Robots Hacked . | . . . Non-combat . | . . . Combat . | . . . Robot Hacks Applied . | . . . Relay Couplers Released . | . . . Fabnet Peak Effective % . | . . . Robots Rewired . | . . . Allies Hacked . | . . . Hacks Repelled . | . . . Allies | -11 -10 -10 -------- Run | Yrd Mat Min Total Allies . | . . . Largest Group . | . . . Highest-Rated Group . | . . . Highest-Rated Ally . | . . . Total Orders . | . . . Ally Attacks . | . . . Total Damage . | . . . Kills . | . . . Allies Corrupted . | . . . Allies Melted . | . . . Intel | -11 -10 -10 ------- Run | Yrd Mat Min Active Infowar (turns) . | . . . Robot Analysis Total . | . . . Derelict Logs Recovered 2 | . . 2 Drone Launches . | . . . Drone Recoveries . | . . . Exploration | -11 -10 -10 ------------- Run | Yrd Mat Min Turns Passed 601 | 63 140 398 Spaces Moved 373 | 45 108 220 Core 16 | 8 . 8 Treads . | . . . Legs 357 | 37 108 212 Wheels . | . . . Hover . | . . . Flight . | . . . Fastest Speed 50 | 50 120 100 Average Speed 118 | 107 120 120 Slowest Speed 250 | 120 120 250 Overloaded Moves . | . . . Propulsion Burnouts . | . . . Robots Hopped . | . . . Potential Cave-ins . | . . . Cave-ins Triggered . | . . . Exploration Rate (%) 28 | 4 26 54 Regions Visited 2 Branch Regions 1 Pre-discovered Areas . | . . . Known Exits Taken . | . . . Unknown Exits Taken 2 | 1 1 . Scrap Searched . | . . . Spaces Dug . | . . . Terrain Destroyed . | . . . Melee . | . . . Projectile . | . . . AOE . | . . . Terrain Rammed . | . . . Walls Destroyed . | . . . Machines Disabled . | . . . Actions | -11 -10 -10 --------- Run | Yrd Mat Min Total 477 | 56 115 306 Wait 34 | . . 34 Move 371 | 44 107 220 Hop . | . . . Pick Up 13 | 6 2 5 Fast Attach 8 | 6 1 1 Attach 5 | . . 5 Detach . | . . . Swap 7 | . 1 6 Drop 8 | . 2 6 Fire 31 | . 2 29 Melee . | . . . Ram . | . . . Kick . | . . . Crush . | . . . Escape Stasis . | . . . Rewire . | . . . Trap . | . . . Miscellaneous . | . . . Route ------- -11/Scrapyard -10/Materials -10/Mines History --------- Turn | Location | Event 4 | -11/Scrapyard | Discovered new exit (range 15) 64 | -11/Scrapyard | Entered Materials 150 | -10/Materials | Discovered new exit (range 14) 204 | -10/Materials | Entered Mines 234 | -10/Mines | Learned Materials terminal intel 253 | -10/Mines | Learned Materials stockpile data 347 | -10/Mines | Build established: Mutant 488 | -10/Mines | Core integrity fell below 50% 489 | -10/Mines | Destroyed YI-UF0 497 | -10/Mines | Found Prototype Storage 497 | -10/Mines | Identified YI-UF0's Bottomless Matter Pit 520 | -10/Mines | Lost 5 parts (1p2n1u1w) 554 | -10/Mines | Assembled infested the area 559 | -10/Mines | Assisted by a Guerilla fighting off Assembled 597 | -10/Mines | Core integrity fell below 20% 602 | -10/Mines | Destroyed by D-53 Grenadier with Mini Grenade Launcher Last Messages --------------- 00564_ U-05 Engineer lays Concrete. 00572_ GZ-SU5(h): "I'll hold them off! Go on ahead or try to find another way!" 00573_ U-05 Engineer lays Concrete. 00574_ HV Slug penetrates Wall. 00574_ U-05 Engineer lays Concrete. 00575_ C-30 ARC bursts open, deploying its payload. 00575_ D-53 Grenadier unfolds itself. 00575_ U-05 Engineer lays Concrete. 00578_ HV Slug penetrates G-47 Trooper. 00579_ U-05 Engineer lays Concrete. 00580_ The unstable cave ceiling collapses. 00580_ U-05 Engineer lays Concrete. 00586_ U-05 Engineer destroyed. 00587_ HV Slug penetrates D-53 Grenadier. 00587_ GZ-SU5(h) destroyed. 00593_ The unstable cave ceiling collapses. 00600_ Aluminum Leg destroyed. 00602_ Lgt. Assault Rifle destroyed. Map ----- +----------------------------------------------------+ | ????????????????????????# ####^ # ##?????? | | ????????????????????????# ^ # #?????? | | ????????????????????????###### #?????? | | ?????????????????????????????#### #?????? | | ????????????????????????????????# #?????? | | ????????????????????????????????## ##?????? | | ?????????????????????????????????# #??????? | | ?????????????????????????????????# #######? | | ?????????????????????????????????# ## | | ?????????????????????????? ### | | ????????????????????????# ############## | | ????????????????????????????????????# # # | | ?????????????????????###????????????## | | ????????????????????## ???????????## | | ????????????????????# ?????????## # | | ???????????????????## #?####???# | | ???????????????????# ## ##### ## | | ???????????????????# # # | | ????????????????????# ## | | ?????????????????????# "% | | ????????????????#######?## " | | ???????????????## ### # | | ??????????????## ## # | | ??????????????# ## | | ??????????????# ## g # | | ?????????????## @ d% """#### | | ????????????## =d #?????? | | ???????# ## #?????? | | ??????# # #?????? | | ??????# ## # #####?????? | | ??????# ##???###?????????? | | ??????# ##????????????????? | | ??????# #????????????????? | | ??????# ## ### #????????????????? | | ??????## #?## #?## #???????????????? | | ???????###?? # ??## #??????????????? | | ???????????# ##???## #??????????????? | | ???????????######??????## ##??????????????? | | ?????????????????????????###???????????????? | | ???????????????????????????????????????????? | | ???????????????????????????????????????????? | | ???????????????????????????????????????????? | | ???????????????????????????????????????????? | | ???????????????????????????????????????????? | | ???????????????????????????????????????????? | | ???????????????????????????????????????????? | | | | | | | | | +----------------------------------------------------+ Best States ------------- Heat Dissipation 39 Energy Generation 10 Energy Capacity 250 Matter Stores 405 Matter Capacity 1800 Sight Range 16 Terrain Scan Density 10 Evasion (%) 55 Item Schematics ----------------- None Robot Schematics ------------------ None Fabricated ------------ Nothing Repaired ---------- Nothing Alien Tech Used ----------------- None Achievements -------------- None Challenges ------------ None Game ------ Seed ModifiedHardlightGun Manual? 0 Play Time 00:08:20 Cumulative 41.4 hours Start 2025.07.01 @ 16:45:46 End 2025.07.01 @ 16:52:45 Sessions 1 Manual Loads 0 Difficulty Rogue Special Mode None Game No. 47 Rogue 47 Adventurer 0 Explorer 0 Win Type - Total 0 Types 0/0/0/0/0/0/0/0/0/0 Lore% 15 Gallery% 31 Achievement% 23 Wizard Run 0 Options --------- Layout 1 ASCII 0 Keyboard 0 Movement Mouse Keybinds 0 Fullscreen 2 Font 48/Smallcaps Map View 50x35 Zoom Use 0% Tactical HUD 1 Map Filters NONE Filters NONE Steam 0 RUN: 47477236-ed64-4ccb-be01-a5f09e32eff2